bitfinex/quotes_SOLUSD_20250717
["timestamp","ask_amount","ask_price","bid_price","bid_amount"]
[1752744818805,20.59672278,175.82,175.81,8.47942325]
[1752744820691,20.59672278,175.82,175.76,26.0]
[1752744820893,20.59672278,175.82,175.81,8.47942325]
[1752744821539,20.59672278,175.82,175.76,26.0]
[1752744821829,0.69,175.81,175.8,8.47942325]
[1752744822786,6.37795859,175.81,175.8,8.47942325]
[1752744823498,5.68795859,175.81,175.8,8.47942325]
[1752744824991,5.68763508,175.82,175.8,8.47942325]
[1752744825191,5.687327,175.83,175.81,8.47942325]
[1752744825392,5.687327,175.83,175.82,8.47942325]
[1752744825691,6.377327,175.83,175.82,8.47942325]
[1752744826124,20.59560601,175.83,175.82,8.47942325]
[1752744826508,20.59560601,175.83,175.8,8.47942325]
[1752744826811,0.69,175.82,175.8,8.47942325]
[1752744827028,5.68795859,175.81,175.8,8.47942325]
[1752744827715,6.37795859,175.81,175.8,8.47942325]
[1752744829139,20.59785506,175.81,175.76,26.0]
[1752744829312,0.69,175.8,175.78,8.47942325]
[1752744829513,0.69,175.8,175.73,7.6939]
[1752744829514,0.69,175.79,175.77,8.47942325]
[1752744829817,19.90785506,175.81,175.77,8.47942325]
[1752744830152,19.90785506,175.81,175.73,7.6939]
[1752744830153,0.69,175.78,175.76,8.47942325]
[1752744830632,0.69,175.78,175.73,7.6939]
[1752744830822,0.69,175.78,175.76,8.47942325]
[1752744831009,5.689253,175.77,175.76,8.47942325]
[1752744831213,5.689253,175.77,175.75,8.47942325]
[1752744831439,0.69,175.76,175.74,8.47942325]
[1752744831731,0.69,175.76,175.7,26.0]
[1752744831912,8.47942325,175.75,175.65,6.6089]
[1752744832237,0.69,175.74,175.7,8.47942325]
[1752744832531,0.69,175.73,175.7,8.47942325]
[1752744832735,19.9123855,175.77,175.72,8.47942325]
[1752744832736,0.69,175.75,175.72,8.47942325]
[1752744832915,20.6023855,175.77,175.74,8.47942325]
[1752744833120,19.9123855,175.77,175.74,8.47942325]
[1752744833328,0.69,175.76,175.74,8.47942325]
[1752744833636,5.689253,175.77,175.75,8.47942325]
[1752744833852,5.689253,175.77,175.76,8.47942325]
[1752744834053,14.22120511,175.8,175.76,8.47942325]
[1752744834346,0.69,175.81,175.79,8.47942325]
[1752744834553,19.90672278,175.82,175.75,26.0]
[1752744834732,0.69,175.81,175.75,26.0]
[1752744835136,19.90898747,175.8,175.77,8.47942325]
[1752744835329,19.90898747,175.8,175.73,26.0]
[1752744835330,0.69,175.79,175.75,8.47942325]
[1752744835531,0.69,175.79,175.7,26.0]
[1752744835532,16.78468397,175.78,175.7,26.0]
[1752744835851,0.69,175.77,175.72,8.47942325]
[1752744836042,25.26410722,175.76,175.71,8.47942325]
[1752744836244,25.26410722,175.74,175.69,8.47942325]
[1752744836541,0.69,175.73,175.68,8.47942325]
[1752744836738,0.69,175.73,175.69,8.47942325]
[1752744836947,26.0,175.68,175.66,8.47942325]
[1752744837129,31.69216757,175.68,175.67,8.47942325]
[1752744838635,5.69184179,175.7,175.67,8.47942325]
[1752744838945,0.69,175.78,175.69,31.67640722]
[1752744839144,5.68860572,175.79,175.77,8.47942325]
[1752744839331,5.68860572,175.79,175.69,23.19698397]
[1752744839539,5.68860572,175.79,175.78,8.47942325]
[1752744841863,5.68860572,175.79,175.73,1.5229]
[1752744841864,6.38860572,175.79,175.73,1.5229]
[1752744842161,6.38860572,175.79,175.78,8.47942325]
[1752744842460,6.38860572,175.79,175.73,1.5229]
[1752744842461,20.61012002,175.79,175.73,1.5229]
[1752744842654,20.61012002,175.79,175.77,8.47942325]
[1752744842852,19.91012002,175.79,175.78,8.47942325]
[1752744843565,20.61012002,175.79,175.78,8.47942325]
[1752744843757,6.38860572,175.79,175.78,8.47942325]
[1752744844349,5.68860572,175.79,175.78,8.47942325]
[1752744844953,5.68828213,175.8,175.78,8.47942325]
[1752744845167,5.68828213,175.8,175.79,8.47942325]
[1752744846172,5.68828213,175.8,175.72,22.47545401]
[1752744846472,5.68828213,175.8,175.79,8.47942325]
[1752744847144,6.38828213,175.8,175.79,8.47942325]
[1752744848034,20.60898747,175.8,175.7,26.0]
[1752744848240,20.60898747,175.8,175.79,8.47942325]
[1752744849367,20.60898747,175.8,175.7,26.0]
[1752744849566,19.90898747,175.8,175.77,8.47942325]
[1752744849872,0.7,175.79,175.78,8.47942325]
[1752744850060,20.61012002,175.79,175.7,26.0]
[1752744850375,20.61012002,175.79,175.78,8.47942325]
[1752744850763,5.68860572,175.79,175.78,8.47942325]
[1752744852071,19.90712848,175.82,175.78,8.47942325]
[1752744852276,19.90712848,175.82,175.81,8.47942325]
[1752744852453,20.60712848,175.82,175.75,26.0]
[1752744852851,20.60712848,175.82,175.81,8.47942325]
[1752744853178,20.60712848,175.82,175.75,26.0]
[1752744853179,20.60712848,175.82,175.8,8.47942325]
[1752744853345,0.7,175.81,175.8,8.47942325]
[1752744853545,0.7,175.81,175.7,88.1]
[1752744853750,0.7,175.81,175.78,8.47942325]
[1752744853973,0.7,175.81,175.69,96.1206]
[1752744853974,0.7,175.81,175.77,8.47942325]
[1752744854175,26.0,175.79,175.77,8.47942325]
[1752744854376,0.7,175.78,175.77,8.47942325]
[1752744854851,26.0,175.77,175.69,8.0206]
[1752744855048,26.7,175.77,175.75,8.47942325]
[1752744855252,0.7,175.76,175.69,8.0206]
[1752744855447,26.0,175.77,175.75,8.47942325]
[1752744855654,0.7,175.79,175.76,8.47942325]
[1752744855865,0.7,175.79,175.7,16.78468397]
[1752744856048,45.90898747,175.8,175.7,16.78468397]
[1752744856251,45.90898747,175.8,175.79,8.47942325]
[1752744856659,46.60898747,175.8,175.79,8.47942325]
[1752744857173,19.90898747,175.8,175.79,8.47942325]
[1752744858479,19.96898747,175.8,175.79,8.47942325]
[1752744859070,14.28070534,175.8,175.79,8.47942325]
[1752744859270,14.98070534,175.8,175.78,0.03]
[1752744859463,0.7,175.79,175.78,0.03]
[1752744859666,0.7,175.79,175.78,8.47942325]
[1752744859864,0.7,175.79,175.7,16.78468397]
[1752744860191,0.7,175.79,175.78,8.47942325]
[1752744861162,19.91125269,175.78,175.7,16.78468397]
[1752744861482,19.91125269,175.78,175.77,8.47942325]
[1752744862283,20.61125269,175.78,175.77,8.47942325]
[1752744863580,19.91125269,175.78,175.77,8.47942325]
[1752744863793,20.61125269,175.78,175.69,34.0206]
[1752744864001,20.61125269,175.78,175.76,8.47942325]
[1752744864186,0.7,175.77,175.75,8.47942325]
[1752744864371,0.7,175.76,175.69,34.0206]
[1752744864566,0.7,175.76,175.72,8.47942325]
[1752744865384,5.68990042,175.75,175.72,8.47942325]
[1752744865595,5.68990042,175.75,175.65,33.7933]
[1752744865596,0.7,175.74,175.7,8.47942325]
[1752744865987,26.0,175.72,175.69,8.47942325]
[1752744866190,0.7,175.71,175.7,8.47942325]
[1752744866495,26.0,175.72,175.7,8.47942325]
[1752744866673,26.0,175.72,175.71,8.47942325]
[1752744867074,19.91465148,175.75,175.71,8.47942325]
[1752744867297,19.91465148,175.75,175.74,8.47942325]
[1752744867473,14.22475106,175.75,175.74,8.47942325]
[1752744869375,14.22475106,175.75,175.68,8.47942325]
[1752744869575,14.22475106,175.75,175.74,8.47942325]
[1752744872008,14.92475106,175.75,175.68,26.0]
[1752744872318,17.88927737,175.75,175.74,8.47942325]
[1752744872698,17.18927737,175.75,175.74,8.47942325]
[1752744873296,22.87917779,175.75,175.74,8.47942325]
[1752744873527,23.57917779,175.75,175.74,8.47942325]
[1752744873696,19.91465148,175.75,175.74,8.47942325]
[1752744875020,5.68990042,175.75,175.74,8.47942325]
[1752744875415,51.32018861,175.78,175.74,8.47942325]
[1752744875613,51.32018861,175.78,175.77,8.47942325]
[1752744876203,22.8755419,175.78,175.77,8.47942325]
[1752744876405,19.91168184,175.78,175.77,8.47942325]
[1752744877399,14.2227525,175.78,175.77,8.47942325]
[1752744878303,5.68860572,175.79,175.77,8.47942325]
[1752744878522,5.68860572,175.79,175.78,8.47942325]
[1752744879503,5.74828213,175.8,175.78,8.47942325]
[1752744879704,5.74828213,175.8,175.79,8.47942325]
[1752744880597,20.66898747,175.8,175.73,26.0]
[1752744880801,20.66898747,175.8,175.79,8.47942325]
[1752744881209,19.96898747,175.8,175.79,8.47942325]
[1752744881395,19.96898747,175.8,175.73,26.0]
[1752744881602,19.96898747,175.8,175.79,8.47942325]
[1752744881801,14.28070534,175.8,175.73,26.0]
[1752744882018,14.28070534,175.8,175.79,8.47942325]
[1752744883008,14.28070534,175.8,175.79,5.29190376]
[1752744883717,14.98070534,175.8,175.79,5.29190376]
[1752744884419,20.66898747,175.8,175.79,5.29190376]
[1752744889506,49.11039816,175.8,175.72,8.2045]
[1752744889706,0.7,175.79,175.78,5.29190376]
[1752744890327,0.7,175.79,175.71,0.03]
[1752744890328,26.0,175.77,175.71,0.03]
[1752744890537,0.7,175.76,175.71,5.29190376]
[1752744890714,31.29190376,175.72,175.66,5.29190376]
[1752744890913,5.29190376,175.71,175.66,5.29190376]
[1752744891242,0.7,175.7,175.66,5.29190376]
[1752744891533,5.69184358,175.69,175.67,5.29190376]
[1752744891737,0.7,175.68,175.67,5.29190376]
[1752744891918,5.69184358,175.69,175.67,5.29190376]
[1752744892120,14.22688256,175.73,175.68,5.29190376]
[1752744892121,5.69087184,175.72,175.68,5.29190376]
[1752744892320,5.68965889,175.76,175.71,5.29190376]
[1752744892527,5.68860572,175.79,175.75,5.29190376]
[1752744892727,5.68860572,175.79,175.78,5.29190376]
[1752744892929,5.68860572,175.79,175.72,6.4989]
[1752744893136,6.38860572,175.79,175.76,8.46979555]
[1752744893315,5.68860572,175.79,175.77,8.46979555]
[1752744893515,6.38892934,175.78,175.77,8.46979555]
[1752744895119,5.68892934,175.78,175.77,8.46979555]
[1752744895529,14.2215143,175.79,175.77,8.46979555]
[1752744895852,14.9215143,175.79,175.78,8.46979555]
[1752744896144,14.2215143,175.79,175.78,8.46979555]
[1752744897231,5.74828213,175.8,175.78,8.46979555]
[1752744897555,5.74828213,175.8,175.79,8.46979555]
[1752744898049,6.44828213,175.8,175.79,8.46979555]
[1752744898356,6.44828213,175.8,175.72,6.4989]
[1752744898522,6.44828213,175.8,175.79,8.46979555]
[1752744900244,20.66898747,175.8,175.72,6.4989]
[1752744900625,20.66898747,175.8,175.79,8.46979555]
[1752744900826,20.66898747,175.8,175.72,6.4989]
[1752744901021,20.66898747,175.8,175.79,8.46979555]
[1752744901660,20.66898747,175.8,175.79,8.49979555]
[1752744903141,5.74828213,175.8,175.79,0.03]
[1752744903341,5.74828213,175.8,175.79,8.49979555]
[1752744904284,0.06,175.8,175.79,8.49979555]
[1752744904744,0.77,175.8,175.79,0.03]
[1752744904942,0.77,175.8,175.79,8.49979555]
[1752744905455,0.06,175.8,175.79,8.49979555]
[1752744905768,0.06,175.8,175.79,0.03]
[1752744905948,0.06,175.8,175.79,8.49979555]
[1752744906142,0.06,175.8,175.79,0.03]
[1752744906449,0.06,175.8,175.79,8.49979555]
[1752744907071,0.06,175.8,175.79,0.03]
[1752744907286,0.06,175.8,175.79,8.49979555]
[1752744907742,0.77,175.8,175.79,8.49979555]
[1752744908255,6.45828213,175.8,175.79,8.49979555]
[1752744910375,32.45828213,175.8,175.79,1e-08]
[1752744910581,91.90508213,175.8,175.75,8.46979555]
[1752744910767,0.71,175.79,175.74,8.46979555]
[1752744911073,0.71,175.79,175.68,14.75229555]
[1752744911074,26.0,175.76,175.71,8.46979555]
[1752744911284,26.71,175.75,175.72,8.46979555]
[1752744911579,0.71,175.74,175.72,8.46979555]
[1752744911758,26.0,175.75,175.73,8.46979555]
[1752744911959,26.71,175.75,175.74,8.46979555]
[1752744912153,26.71,175.75,175.73,8.46979555]
[1752744912374,6.40022419,175.74,175.73,8.46979555]
[1752744912576,20.62578467,175.74,175.73,8.46979555]
[1752744912796,19.91578467,175.74,175.73,8.46979555]
[1752744912976,20.62578467,175.74,175.73,8.46979555]
[1752744913159,20.62578467,175.74,175.68,6.2825]
[1752744913367,20.62578467,175.74,175.72,8.46979555]
[1752744913571,20.62578467,175.74,175.73,8.46979555]
[1752744915093,20.62578467,175.74,175.64,50.87708397]
[1752744915259,0.71,175.73,175.71,5.29689562]
[1752744915464,0.71,175.73,175.66,5.29689562]
[1752744915465,42.78468397,175.71,175.66,5.29689562]
[1752744915772,5.29689562,175.69,175.64,5.29689562]
[1752744915963,0.71,175.68,175.63,0.2]
[1752744916163,26.0,175.67,175.65,5.29689562]
[1752744916368,5.6924916,175.67,175.66,5.29689562]
[1752744916972,5.6924916,175.67,175.66,8.47902508]
[1752744917170,0.71,175.71,175.66,8.47902508]
[1752744917378,31.69119572,175.71,175.7,8.47902508]
[1752744917685,31.69119572,175.71,175.63,0.2]
[1752744917887,31.69119572,175.71,175.7,8.47902508]
[1752744918685,46.62918502,175.71,175.63,0.2]
[1752744918886,46.62918502,175.71,175.7,8.47902508]
[1752744919267,20.62918502,175.71,175.7,8.47902508]
[1752744919473,6.39990042,175.75,175.7,8.47902508]
[1752744919789,0.71,175.74,175.68,8.47902508]
[1752744919987,5.68990042,175.75,175.68,8.47902508]
[1752744920392,19.91465148,175.75,175.68,8.47902508]
[1752744920687,5.68990042,175.75,175.68,8.47902508]
[1752744920865,5.68990042,175.75,175.74,8.47902508]
[1752744921060,14.93266824,175.78,175.74,8.47902508]
[1752744921388,0.77,175.8,175.77,8.47902508]
[1752744921590,20.62012002,175.79,175.71,1.5906]
[1752744921768,20.62012002,175.79,175.78,8.47902508]
[1752744922387,5.68860572,175.79,175.78,8.47902508]
[1752744924371,0.06,175.8,175.78,16.95805016]
[1752744924572,0.06,175.8,175.79,16.95805016]
[1752744924872,5.74828213,175.8,175.79,8.47902508]
[1752744925087,0.06,175.8,175.79,8.47902508]
[1752744925294,0.06,175.85,175.79,16.95805016]
[1752744925471,5.74681962,175.85,175.8,8.47902508]
[1752744925670,6.45681962,175.85,175.84,8.47902508]
[1752744926375,5.74681962,175.85,175.84,8.47902508]
[1752744926594,36.50681962,175.85,175.84,8.47902508]
[1752744926893,37.21681962,175.85,175.84,8.47902508]
[1752744929008,26.0,175.81,175.79,8.47902508]
[1752744929288,26.0,175.81,175.71,1.5906]
[1752744929289,26.0,175.82,175.8,8.47902508]
[1752744929468,19.96348154,175.85,175.74,26.0]
[1752744929469,30.76,175.81,175.74,26.0]
[1752744929675,0.71,175.8,175.73,26.0]
[1752744929869,0.71,175.8,175.79,8.47902508]
[1752744930694,0.71,175.8,175.71,1.5906]
[1752744930869,19.91012002,175.79,175.71,1.5906]
[1752744931075,30.76,175.78,175.71,1.5906]
[1752744931399,30.76,175.78,175.77,8.47902508]
[1752744931614,31.42,175.78,175.77,8.47902508]
[1752744931794,31.42,175.78,175.71,1.5906]
[1752744932002,0.66,175.77,175.7,6.1131]
[1752744932304,9.13902508,175.77,175.67,1.5778]
[1752744932512,0.66,175.76,175.71,8.47902508]
[1752744932713,16.78468397,175.74,175.66,6.1431]
[1752744933018,16.78468397,175.74,175.67,8.47902508]
[1752744933019,19.91805144,175.72,175.67,8.47902508]
[1752744933219,30.74,175.71,175.67,8.47902508]
[1752744933407,31.4,175.7,175.68,8.47902508]
[1752744933715,0.66,175.71,175.69,8.47902508]
[1752744934026,48.37241064,175.72,175.66,0.03]
[1752744934027,19.91805144,175.72,175.7,8.47902508]
[1752744934305,19.91805144,175.72,175.71,8.47902508]
[1752744934701,50.67805144,175.72,175.71,8.47902508]
[1752744935086,51.33805144,175.72,175.71,8.47902508]
[1752744935391,51.31805144,175.72,175.71,8.47902508]
[1752744935991,51.31805144,175.72,175.66,0.03]
[1752744936192,0.66,175.71,175.66,0.03]
[1752744936405,0.66,175.71,175.69,8.47902508]
[1752744936694,50.65805144,175.72,175.69,8.47902508]
[1752744937003,6.35151963,175.7,175.69,8.47902508]
[1752744937384,6.35151963,175.7,175.66,0.03]
[1752744937586,54.45356107,175.73,175.66,0.03]
[1752744937587,5.69054799,175.73,175.69,8.47902508]
[1752744937814,5.69054799,175.73,175.72,8.47902508]
[1752744938107,5.68860572,175.79,175.72,8.47902508]
[1752744938310,30.74,175.78,175.72,6.3497]
[1752744939299,5.689253,175.77,175.72,6.3497]
[1752744939505,5.689253,175.77,175.76,8.47902508]
[1752744939801,6.349253,175.77,175.76,8.47902508]
[1752744942030,6.349253,175.77,175.72,6.3497]
[1752744942329,5.689253,175.77,175.76,8.47902508]
[1752744942901,6.349253,175.77,175.76,8.47902508]
[1752744943306,51.3123855,175.77,175.68,7.8382]
[1752744943507,51.3123855,175.77,175.76,8.47902508]
[1752744943703,5.689253,175.77,175.76,8.47902508]
[1752744943941,36.429253,175.77,175.76,8.47902508]
[1752744945145,37.089253,175.77,175.76,8.47902508]
[1752744945615,51.3123855,175.77,175.76,8.47902508]
[1752744947056,36.429253,175.77,175.76,8.47902508]
[1752744949560,36.429253,175.77,175.71,26.03]
[1752744949871,37.089253,175.77,175.76,8.47902508]
[1752744950176,36.429253,175.77,175.76,8.47902508]
[1752744950742,30.74,175.77,175.76,8.47902508]
[1752744950968,5.74895594,175.78,175.76,8.47902508]
[1752744951271,5.74895594,175.78,175.71,26.03]
[1752744951272,36.46895594,175.78,175.77,8.47902508]
[1752744954192,51.35127929,175.78,175.77,8.47902508]
[1752744954386,54.31520434,175.78,175.77,8.47902508]
[1752744954597,54.31520434,175.78,175.71,0.03]
[1752744954598,54.31520434,175.78,175.76,8.47902508]
[1752744954809,53.65520434,175.78,175.76,8.47902508]
[1752744954990,0.66,175.77,175.71,0.03]
[1752744955313,30.72,175.76,175.71,0.03]
[1752744955510,5.68990042,175.75,175.71,0.03]
[1752744955712,30.72,175.74,175.71,0.03]
[1752744956079,30.72,175.74,175.73,8.47902508]
[1752744957405,36.41022419,175.74,175.73,8.47902508]
[1752744957918,30.72,175.74,175.73,8.47902508]
[1752744960007,30.72,175.75,175.73,8.47902508]
[1752744960204,30.72,175.75,175.74,8.47902508]
[1752744960723,0.66,175.75,175.74,8.47902508]
[1752744961024,31.36,175.75,175.74,8.47902508]
[1752744961424,37.04990042,175.75,175.74,8.47902508]
[1752744961814,30.7,175.75,175.74,8.47902508]
[1752744962006,36.38990042,175.75,175.74,8.47902508]
[1752744962213,30.7,175.75,175.74,8.47902508]
[1752744962530,5.68990042,175.75,175.74,8.47902508]
[1752744962722,36.38990042,175.75,175.74,8.47902508]
[1752744962921,30.7,175.75,175.74,8.47902508]
[1752744963999,31.41,175.75,175.71,0.03]
[1752744964205,30.7,175.75,175.74,8.47902508]
[1752744964508,31.41,175.75,175.71,0.03]
[1752744964714,31.41,175.75,175.74,8.47902508]
[1752744965132,30.7,175.75,175.74,8.47902508]
[1752744965434,0.06,175.78,175.74,8.47902508]
[1752744965637,30.76,175.78,175.77,8.47902508]
[1752744966222,31.47,175.78,175.77,8.47902508]
[1752744967520,30.76,175.78,175.77,8.47902508]
[1752744968339,0.06,175.78,175.77,8.47902508]
[1752744970537,0.77,175.78,175.77,8.47902508]
[1752744971938,6.45892934,175.78,175.77,8.47902508]
[1752744972838,0.77,175.78,175.77,8.47902508]
[1752744973146,6.45892934,175.78,175.77,8.47902508]
[1752744973639,0.77,175.78,175.77,8.47902508]
[1752744973847,6.45892934,175.78,175.77,8.47902508]
[1752744974548,6.45892934,175.78,175.71,7.22446413]
[1752744974754,30.68,175.77,175.71,1.5333]
[1752744974934,31.39,175.77,175.76,8.47902508]
[1752744975319,37.079253,175.77,175.76,8.47902508]
[1752744975616,37.079253,175.77,175.71,0.03]
[1752744975825,0.71,175.76,175.72,8.47902508]
[1752744976038,0.71,175.76,175.73,8.47902508]
[1752744976744,5.689253,175.77,175.75,8.47902508]
[1752744976955,5.689253,175.77,175.76,8.47902508]
[1752744977247,30.68,175.77,175.76,8.47902508]
[1752744977452,0.06,175.78,175.76,8.47902508]
[1752744977740,0.06,175.78,175.77,8.47902508]
[1752744978431,5.74892934,175.78,175.77,8.47902508]
[1752744979156,6.45892934,175.78,175.71,26.03]
[1752744979350,6.45892934,175.78,175.77,8.47902508]
[1752744979635,0.06,175.78,175.77,8.47902508]
[1752744982850,0.77,175.78,175.73,1.6228]
[1752744983057,0.77,175.78,175.77,8.47902508]
[1752744983658,6.45892934,175.78,175.77,8.47902508]
[1752744985750,5.74892934,175.78,175.77,8.47902508]
[1752744985946,0.06,175.78,175.77,8.47902508]
[1752744986526,5.74892934,175.78,175.77,8.47902508]
[1752744987647,6.45892934,175.78,175.77,8.47902508]
[1752744988151,30.72,175.78,175.77,8.47902508]
[1752744988348,0.06,175.78,175.77,8.47902508]
[1752744991451,0.06,175.78,175.74,16.78468397]
[1752744991675,0.06,175.78,175.77,8.47902508]
[1752744992952,0.06,175.78,175.77,5.29243357]
[1752744996863,36.34807074,175.81,175.77,5.29243357]
[1752744997067,5.68807074,175.81,175.8,5.29243357]
[1752744997262,5.6877434,175.82,175.8,5.29243357]
[1752744997468,5.6877434,175.82,175.81,5.29243357]
[1752744998280,0.06,175.83,175.81,5.29243357]
[1752744998463,0.06,175.83,175.82,5.29243357]
[1752744999372,5.74735589,175.83,175.82,5.29243357]
[1752745000573,5.74735589,175.83,175.78,16.78468397]
[1752745000762,5.74735589,175.83,175.82,5.29243357]
[1752745002071,5.74735589,175.83,175.76,137.51748397]
[1752745002072,6.42735589,175.83,175.76,120.7328]
[1752745002259,5.74735589,175.83,175.77,16.78468397]
[1752745002574,5.74735589,175.83,175.82,5.29243357]
[1752745002870,36.38735589,175.83,175.82,5.29243357]
[1752745003092,30.7,175.83,175.82,5.29243357]
[1752745003275,0.06,175.83,175.82,5.29243357]
[1752745004387,0.06,175.85,175.83,16.78468397]
[1752745004590,0.06,175.85,175.84,5.29243357]
[1752745005359,0.06,175.85,175.83,16.78468397]
[1752745005564,0.06,175.85,175.84,5.29243357]
[1752745006374,0.06,175.85,175.83,16.78468397]
[1752745006710,0.06,175.85,175.84,22.07711754]
[1752745007067,0.1,175.89,175.85,16.78468397]
[1752745007275,0.1,175.89,175.88,5.29243357]
[1752745007974,6.46537153,175.89,175.84,6.3377]
[1752745008183,0.68,175.88,175.84,6.3377]
[1752745008379,0.68,175.88,175.87,5.29243357]
[1752745008579,0.68,175.88,175.82,16.78468397]
[1752745008890,36.40537153,175.89,175.87,5.29243357]
[1752745009076,37.08537153,175.89,175.88,5.29243357]
[1752745009275,30.72,175.89,175.88,5.29243357]
[1752745009475,5.78537153,175.89,175.88,5.29243357]
[1752745009885,6.46537153,175.89,175.88,5.29243357]
[1752745010395,6.46537153,175.89,175.81,1.6564]
[1752745010693,6.46537153,175.89,175.88,5.29243357]
[1752745012077,5.78537153,175.89,175.88,5.29243357]
[1752745013673,6.46537153,175.89,175.84,0.03]
[1752745013874,6.46537153,175.89,175.88,5.29243357]
[1752745015090,6.46537153,175.89,175.84,16.81468397]
[1752745015290,5.78537153,175.89,175.88,5.29243357]
[1752745015973,6.46537153,175.89,175.88,5.29243357]
[1752745017274,20.67880037,175.89,175.84,0.03]
[1752745017483,19.99880037,175.89,175.88,5.29243357]
[1752745017885,50.59880037,175.89,175.88,5.29243357]
[1752745018095,51.27880037,175.89,175.88,5.29243357]
[1752745020887,51.27880037,175.89,175.84,0.03]
[1752745021106,0.68,175.88,175.84,0.03]
[1752745021403,0.68,175.88,175.87,5.29243357]
[1752745022128,5.68601808,175.87,175.84,0.03]
[1752745022418,5.68601808,175.87,175.86,5.29243357]
[1752745022595,6.39601808,175.87,175.86,5.29243357]
[1752745023014,6.39601808,175.87,175.84,0.03]
[1752745023179,6.39601808,175.87,175.86,5.29243357]
[1752745023379,5.68601808,175.87,175.86,5.29243357]
[1752745023600,0.1,175.89,175.86,5.29243357]
[1752745023803,0.1,175.89,175.88,5.29243357]
[1752745024300,0.1,175.89,175.85,16.78468397]
[1752745024486,0.06,175.9,175.88,27.36955111]
[1752745024813,0.06,175.9,175.89,28.98115111]
[1752745025612,0.06,175.91,175.9,16.78468397]
[1752745025919,0.06,175.94,175.91,5.68472514]
[1752745026085,0.06,175.94,175.93,22.07711754]
[1752745026287,0.06,175.94,175.91,16.78468397]
[1752745026588,0.06,175.94,175.93,5.29243357]
[1752745029714,0.06,175.94,175.93,10.97651246]
[1752745030016,34.25006021,176.01,175.93,10.97651246]
[1752745030017,5.68181818,176.0,175.93,10.97651246]
[1752745030209,5.68181818,176.0,175.99,5.29243357]
[1752745030797,6.39181818,176.0,175.99,5.29243357]
[1752745031298,5.68181818,176.0,175.99,5.29243357]
[1752745031604,5.68084985,176.03,175.99,5.29243357]
[1752745031816,0.71,176.02,175.96,6.5179]
[1752745031997,0.71,176.02,176.01,5.29243357]
[1752745032199,26.71,176.06,176.01,5.29243357]
[1752745032512,3.66916064,176.05,175.98,1.578]
[1752745032715,3.66916064,176.05,175.96,37.0779]
[1752745032716,23.54987633,176.05,175.96,8.0959]
[1752745033023,5.68084985,176.03,175.97,16.78468397]
[1752745033224,5.68084985,176.03,176.02,5.29243357]
[1752745033795,5.68084985,176.03,175.97,16.78468397]
[1752745034014,5.68084985,176.03,176.02,5.29243357]
[1752745034319,8.63966316,176.05,176.02,5.29243357]
[1752745034540,0.71,176.1,176.04,5.29243357]
[1752745034827,3.66858097,176.08,176.06,5.29243357]
[1752745035001,6.38955926,176.07,176.06,5.29243357]
[1752745035912,5.67955926,176.07,176.06,5.29243357]
[1752745036219,6.38955926,176.07,176.06,5.29243357]
[1752745036523,5.67955926,176.07,176.06,5.29243357]
[1752745036741,5.67955926,176.07,176.0,31.29243357]
[1752745036917,5.67923671,176.08,176.06,5.29243357]
[1752745037115,5.67923671,176.08,176.0,36.97415193]
[1752745037311,0.71,176.07,175.97,53.00740128]
[1752745037621,6.38923671,176.08,176.06,5.29243357]
[1752745037804,0.71,176.07,176.0,31.29243357]
[1752745038001,5.67923671,176.08,176.06,5.29243357]
[1752745038323,0.71,176.14,176.08,16.78468397]
[1752745038524,6.38665758,176.16,176.13,5.29243357]
[1752745038706,0.71,176.16,176.15,5.29243357]
[1752745039522,2.95751916,176.19,176.17,16.78468397]
[1752745039723,0.19617055,176.25,176.19,16.78468397]
[1752745039724,5.67410675,176.24,176.19,16.78468397]
[1752745039925,0.19617055,176.25,176.23,5.29243357]
[1752745040301,0.71,176.31,176.24,5.29243357]
[1752745040513,6.38182803,176.31,176.3,5.29243357]
[1752745040715,6.38182803,176.31,176.21,16.78468397]
[1752745040935,19.85365022,176.29,176.26,8.42371031]
[1752745041116,0.71,176.28,176.27,8.42371031]
[1752745041438,0.71,176.28,176.2,16.78468397]
[1752745041618,19.47365022,176.29,176.27,8.42371031]
[1752745041818,19.47365022,176.29,176.2,17.46468397]
[1752745042123,19.47365022,176.29,176.26,8.42371031]
[1752745042326,30.54,176.28,176.24,8.42371031]